[Event "*** Titled Tuesday 3|2 Blitz"]
[Site "Chess.com"]
[Date "2016.06.07"]
[Round "3"]
[White "Abdodi"]
[Black "charlescandycampbell"]
[Result "0-1"]
[WhiteElo "1977"]
[BlackElo "2043"]
[TimeControl "180+2"]
[EndTime "11:40:10 PDT"]
[Termination "charlescandycampbell won by resignation"]

1. d4 {[%clk 0:03:01.9]} 1... Nf6 {[%clk 0:02:58.5]} 2. Nc3 {[%clk 0:03:02.4]}
2... d5 {[%clk 0:02:59.1]} 3. Nf3 {[%clk 0:03:02.8]} 3... Bf5 {[%clk 0:02:59.4]}
4. g3 {[%clk 0:03:03]} 4... e6 {[%clk 0:02:59]} 5. Bg2 {[%clk 0:03:04.1]} 5...
c6 {[%clk 0:02:59.9]} 6. Nh4 {[%clk 0:03:05]} 6... Bd6 {[%clk 0:02:57.3]} 7.
Nxf5 {[%clk 0:03:05.4]} 7... exf5 {[%clk 0:02:58.3]} 8. O-O {[%clk 0:03:06.6]}
8... O-O {[%clk 0:02:58.8]} 9. Bg5 {[%clk 0:03:06.5]} 9... Nbd7 {[%clk
0:02:59.7]} 10. Na4 {[%clk 0:03:03.3]} 10... h6 {[%clk 0:02:58.1]} 11. Bc1
{[%clk 0:03:01.6]} 11... Qe7 {[%clk 0:02:56.7]} 12. b3 {[%clk 0:03:00]} 12...
Rfe8 {[%clk 0:02:56.8]} 13. Re1 {[%clk 0:03:00.2]} 13... Kh7 {[%clk 0:02:56]}
14. c4 {[%clk 0:03:00.7]} 14... Ne4 {[%clk 0:02:46.9]} 15. f3 {[%clk 0:02:58.8]}
15... Nef6 {[%clk 0:02:40.9]} 16. Nc3 {[%clk 0:02:55]} 16... Bb4 {[%clk
0:02:36.5]} 17. Qd3 {[%clk 0:02:55.3]} 17... g6 {[%clk 0:02:35.3]} 18. Kh1
{[%clk 0:02:51.2]} 18... Qd6 {[%clk 0:02:16.6]} 19. a3 {[%clk 0:02:46.9]} 19...
Bxc3 {[%clk 0:02:11.3]} 20. Qxc3 {[%clk 0:02:47.3]} 20... Re6 {[%clk 0:02:10.9]}
21. Qd2 {[%clk 0:02:40.8]} 21... Qf8 {[%clk 0:02:09.7]} 22. Ra2 {[%clk
0:02:37.2]} 22... Rae8 {[%clk 0:02:09.8]} 23. Qf4 {[%clk 0:02:35.1]} 23... Nb6
{[%clk 0:01:56.5]} 24. c5 {[%clk 0:02:26.8]} 24... Nbd7 {[%clk 0:01:57.4]} 25.
Qc7 {[%clk 0:02:25.6]} 25... Rb8 {[%clk 0:01:53.5]} 26. Bf4 {[%clk 0:02:16.3]}
26... Qd8 {[%clk 0:01:52.7]} 27. Qxd8 {[%clk 0:02:00.6]} 27... Rxd8 {[%clk
0:01:53.1]} 28. b4 {[%clk 0:02:01.1]} 28... a6 {[%clk 0:01:53.6]} 29. a4 {[%clk
0:02:01.8]} 29... Ra8 {[%clk 0:01:52]} 30. Rea1 {[%clk 0:01:59.4]} 30... Rae8
{[%clk 0:01:51.7]} 31. Bf1 {[%clk 0:01:59.4]} 31... g5 {[%clk 0:01:52.3]} 32.
Bd6 {[%clk 0:01:57.5]} 32... Ra8 {[%clk 0:01:52.1]} 33. b5 {[%clk 0:01:58.3]}
33... a5 {[%clk 0:01:24.6]} 34. bxc6 {[%clk 0:01:47.8]} 34... bxc6 {[%clk
0:01:23.7]} 35. Rb2 {[%clk 0:01:44.5]} 35... Ra7 {[%clk 0:01:20.4]} 36. Rab1
{[%clk 0:01:39.4]} 36... Re8 {[%clk 0:01:21.2]} 37. Rb7 {[%clk 0:01:35.3]} 37...
Rea8 {[%clk 0:01:22.1]} 38. Kg1 {[%clk 0:01:33.3]} 38... Kg6 {[%clk 0:01:22.9]}
39. Kf2 {[%clk 0:01:34.2]} 39... Ne8 {[%clk 0:01:16.6]} 40. Bb8 {[%clk
0:01:30.7]} 40... Nxb8 {[%clk 0:01:15.2]} 41. Rxb8 {[%clk 0:01:31.6]} 41... Nf6
{[%clk 0:01:11.8]} 42. Rxa8 {[%clk 0:01:28]} 42... Rxa8 {[%clk 0:01:13.1]} 43.
Rb6 {[%clk 0:01:29.6]} 43... Rc8 {[%clk 0:01:12.9]} 44. Ra6 {[%clk 0:01:28.2]}
44... f4 {[%clk 0:00:58]} 45. Rxa5 {[%clk 0:01:20.9]} 45... Ne8 {[%clk
0:00:52.7]} 46. Ra6 {[%clk 0:01:16]} 46... Kf6 {[%clk 0:00:51.3]} 47. Bh3 {[%clk
0:01:16.2]} 47... Rc7 {[%clk 0:00:51.9]} 48. a5 {[%clk 0:01:16.8]} 48... Ke7
{[%clk 0:00:51.5]} 49. Rb6 {[%clk 0:01:16.9]} 49... Ra7 {[%clk 0:00:35.7]} 50.
a6 {[%clk 0:01:14.1]} 50... Nc7 {[%clk 0:00:36.5]} 51. Rb7 {[%clk 0:01:06.5]}
51... Rxb7 {[%clk 0:00:36.5]} 52. axb7 {[%clk 0:01:03.9]} 52... Na6 {[%clk
0:00:37.8]} 53. gxf4 {[%clk 0:00:57]} 53... gxf4 {[%clk 0:00:38.2]} 54. Bc8
{[%clk 0:00:57.2]} 54... Kd8 {[%clk 0:00:34.6]} 55. Kg2 {[%clk 0:00:58.4]} 55...
Kc7 {[%clk 0:00:34.4]} 56. Kh3 {[%clk 0:00:59.9]} 56... Nb4 {[%clk 0:00:35.6]}
57. Kg4 {[%clk 0:01:01.5]} 57... Nc2 {[%clk 0:00:36.8]} 58. Kxf4 {[%clk
0:00:53.8]} 58... Nxd4 {[%clk 0:00:37.9]} 59. e4 {[%clk 0:00:48.7]} 59... dxe4
{[%clk 0:00:38.2]} 60. Kxe4 {[%clk 0:00:49.7]} 60... Nb3 {[%clk 0:00:39.2]} 61.
Kf5 {[%clk 0:00:51.3]} 61... Nxc5 {[%clk 0:00:40.1]} 62. Kf6 {[%clk 0:00:52.5]}
62... Nxb7 {[%clk 0:00:41.3]} 63. Bg4 {[%clk 0:00:44.7]} 63... Nd6 {[%clk
0:00:42.2]} 64. Kg7 {[%clk 0:00:45.7]} 64... c5 {[%clk 0:00:41.1]} 65. Kxh6
{[%clk 0:00:46.1]} 65... c4 {[%clk 0:00:42.7]} 66. f4 {[%clk 0:00:46.9]} 66...
c3 {[%clk 0:00:43.8]} 67. Bd1 {[%clk 0:00:47.7]} 67... Nf5+ {[%clk 0:00:44.7]}
68. Kg5 {[%clk 0:00:45.5]} 68... Nd4 {[%clk 0:00:40.8]} 69. h4 {[%clk
0:00:44.2]} 69... Kd7 {[%clk 0:00:38.7]} 70. Kf6 {[%clk 0:00:42.9]} 70... Ke8
{[%clk 0:00:39.9]} 71. Kg7 {[%clk 0:00:16.5]} 71... Nf5+ {[%clk 0:00:38.7]} 72.
Kf6 {[%clk 0:00:17.8]} 72... Nxh4 {[%clk 0:00:39.9]} 73. Bb3 {[%clk 0:00:17.5]}
73... Kf8 {[%clk 0:00:35]} 74. Ke5 {[%clk 0:00:17.2]} 74... Nf3+ {[%clk
0:00:32.3]} 75. Kd5 {[%clk 0:00:16]} 75... Nd2 {[%clk 0:00:22.8]} 76. Bc2 {[%clk
0:00:16.8]} 76... Ke7 {[%clk 0:00:23.9]} 77. Kd4 {[%clk 0:00:17.7]} 77... Nf3+
{[%clk 0:00:21.8]} 78. Kxc3 {[%clk 0:00:18.2]} 78... Kf6 {[%clk 0:00:20.1]} 79.
Kd3 {[%clk 0:00:17.9]} 79... Ne1+ {[%clk 0:00:20.5]} 80. Kd2 {[%clk 0:00:18.9]}
80... Nxc2 {[%clk 0:00:21.8]} 81. Kxc2 {[%clk 0:00:20.3]} 81... Kf5 {[%clk
0:00:23.7]} 82. Kd3 {[%clk 0:00:21.3]} 82... Kxf4 {[%clk 0:00:25.4]} 83. Ke2
{[%clk 0:00:23]} 83... f6 {[%clk 0:00:25.5]} 84. Ke1 {[%clk 0:00:23.4]} 84...
Kf3 {[%clk 0:00:26.3]} 85. Kf1 {[%clk 0:00:24.5]} 85... f5 {[%clk 0:00:27.7]}
86. Kg1 {[%clk 0:00:25.8]} 86... Ke2 {[%clk 0:00:29.1]} 87. Kg2 {[%clk
0:00:26.6]} 0-1

[Event "*** Titled Tuesday 3|2 Blitz"]
[Site "Chess.com"]
[Date "2016.06.07"]
[Round "4"]
[White "mwpchess"]
[Black "kereswasbest"]
[Result "1-0"]
[WhiteElo "2354"]
[BlackElo "2117"]
[TimeControl "180+2"]
[EndTime "11:43:10 PDT"]
[Termination "mwpchess won by resignation"]

1. d4 {[%clk 0:03:01.9]} 1... d5 {[%clk 0:03:00.8]} 2. Bf4 {[%clk 0:03:02.1]}
2... e6 {[%clk 0:02:59.2]} 3. e3 {[%clk 0:03:02.3]} 3... Bd6 {[%clk 0:02:58.5]}
4. Bg3 {[%clk 0:03:02.4]} 4... Nf6 {[%clk 0:02:56]} 5. Nf3 {[%clk 0:03:02.1]}
5... c5 {[%clk 0:02:55.1]} 6. c3 {[%clk 0:03:02.6]} 6... Nc6 {[%clk 0:02:55]} 7.
Nbd2 {[%clk 0:03:02.7]} 7... O-O {[%clk 0:02:55.2]} 8. Bd3 {[%clk 0:03:02]} 8...
Qe7 {[%clk 0:02:52.3]} 9. Ne5 {[%clk 0:02:59.3]} 9... Bd7 {[%clk 0:02:47.7]} 10.
f4 {[%clk 0:02:48.9]} 10... Rab8 {[%clk 0:02:43.1]} 11. O-O {[%clk 0:02:46.4]}
11... b5 {[%clk 0:02:43.3]} 12. a3 {[%clk 0:02:44.3]} 12... a5 {[%clk 0:02:43]}
13. Bh4 {[%clk 0:02:42.8]} 13... b4 {[%clk 0:02:31.9]} 14. axb4 {[%clk
0:02:42.7]} 14... axb4 {[%clk 0:02:31.8]} 15. Ng4 {[%clk 0:02:37.1]} 15... bxc3
{[%clk 0:02:28.7]} 16. Nxf6+ {[%clk 0:02:37.7]} 16... gxf6 {[%clk 0:02:28.6]}
17. Qh5 {[%clk 0:02:38.3]} 1-0

[Event "*** Titled Tuesday 3|2 Blitz"]
[Site "Chess.com"]
[Date "2016.06.07"]
[Round "4"]
[White "Zazuliak"]
[Black "Andrejkin"]
[Result "1-0"]
[WhiteElo "2352"]
[BlackElo "2153"]
[TimeControl "180+2"]
[EndTime "11:44:20 PDT"]
[Termination "Zazuliak won by resignation"]

1. d4 {[%clk 0:02:59.9]} 1... Nf6 {[%clk 0:02:59.3]} 2. c4 {[%clk 0:02:57.2]}
2... e6 {[%clk 0:03:01.2]} 3. Nc3 {[%clk 0:02:58.1]} 3... Bb4 {[%clk 0:03:01.9]}
4. Qc2 {[%clk 0:02:58.9]} 4... c5 {[%clk 0:03:02.8]} 5. dxc5 {[%clk 0:02:59.7]}
5... O-O {[%clk 0:03:01.2]} 6. a3 {[%clk 0:03:00.1]} 6... Bxc5 {[%clk
0:03:01.3]} 7. Nf3 {[%clk 0:02:59.4]} 7... Nc6 {[%clk 0:02:58.7]} 8. Bg5 {[%clk
0:02:59.6]} 8... d5 {[%clk 0:02:47.5]} 9. cxd5 {[%clk 0:02:59.8]} 9... exd5
{[%clk 0:02:43.1]} 10. Bxf6 {[%clk 0:03:00.2]} 10... Qxf6 {[%clk 0:02:43.1]} 11.
Nxd5 {[%clk 0:02:58.7]} 11... Qd6 {[%clk 0:02:37.5]} 12. Rd1 {[%clk 0:02:58.8]}
12... Re8 {[%clk 0:02:18.2]} 13. e3 {[%clk 0:02:52.8]} 13... Bg4 {[%clk
0:02:10.9]} 14. Be2 {[%clk 0:02:43.3]} 14... Bxf3 {[%clk 0:02:04.2]} 15. Bxf3
{[%clk 0:02:35.5]} 15... Ne5 {[%clk 0:02:06.1]} 16. Be4 {[%clk 0:02:22.1]} 16...
h6 {[%clk 0:01:53]} 17. O-O {[%clk 0:02:18.1]} 17... Ng4 {[%clk 0:01:53.3]} 18.
Nf4 {[%clk 0:02:11]} 1-0

[Event "*** Titled Tuesday 3|2 Blitz"]
[Site "Chess.com"]
[Date "2016.06.07"]
[Round "4"]
[White "ChessMavenYeti"]
[Black "Usurpov"]
[Result "0-1"]
[WhiteElo "2138"]
[BlackElo "2351"]
[TimeControl "180+2"]
[EndTime "11:45:21 PDT"]
[Termination "Usurpov won by resignation"]

1. d4 {[%clk 0:02:47]} 1... Nf6 {[%clk 0:02:59.6]} 2. c4 {[%clk 0:02:47.9]} 2...
g6 {[%clk 0:03:00.7]} 3. Nc3 {[%clk 0:02:48.4]} 3... d5 {[%clk 0:03:02.3]} 4.
Nf3 {[%clk 0:02:48.5]} 4... Bg7 {[%clk 0:03:02.9]} 5. Bg5 {[%clk 0:02:49.9]}
5... Ne4 {[%clk 0:03:03.8]} 6. cxd5 {[%clk 0:02:47]} 6... Nxg5 {[%clk
0:03:04.4]} 7. Nxg5 {[%clk 0:02:48.9]} 7... O-O {[%clk 0:03:05.9]} 8. e4 {[%clk
0:02:42.6]} 8... c6 {[%clk 0:03:00.3]} 9. Bc4 {[%clk 0:02:37.3]} 9... cxd5
{[%clk 0:02:35.5]} 10. exd5 {[%clk 0:02:31]} 10... e6 {[%clk 0:02:32.7]} 11.
dxe6 {[%clk 0:02:08.6]} 11... Qxg5 {[%clk 0:02:30.9]} 12. exf7+ {[%clk
0:02:09.6]} 12... Kh8 {[%clk 0:02:31.3]} 13. O-O {[%clk 0:02:04.4]} 13... Nc6
{[%clk 0:02:29.4]} 14. Re1 {[%clk 0:01:50]} 14... Nxd4 {[%clk 0:02:17.8]} 15.
Re8 {[%clk 0:01:43.7]} 15... Bg4 {[%clk 0:02:17.9]} 16. Rxf8+ {[%clk 0:01:21]}
16... Rxf8 {[%clk 0:02:15.8]} 17. Qa4 {[%clk 0:01:18.3]} 17... Nf3+ {[%clk
0:01:35.5]} 18. gxf3 {[%clk 0:01:03.4]} 18... Bh3+ {[%clk 0:01:33.5]} 0-1

[Event "*** Titled Tuesday 3|2 Blitz"]
[Site "Chess.com"]
[Date "2016.06.07"]
[Round "4"]
[White "Wolverine_master"]
[Black "162a54f5d"]
[Result "1-0"]
[WhiteElo "2096"]
[BlackElo "2122"]
[TimeControl "180+2"]
[EndTime "11:45:47 PDT"]
[Termination "Wolverine_master won by resignation"]

1. e4 {[%clk 0:02:59]} 1... Nc6 {[%clk 0:02:58.6]} 2. d4 {[%clk 0:02:58.7]} 2...
d5 {[%clk 0:02:59.3]} 3. e5 {[%clk 0:02:58.9]} 3... Bf5 {[%clk 0:02:57.5]} 4.
Bd3 {[%clk 0:02:57.9]} 4... Nxd4 {[%clk 0:02:57.7]} 5. Be3 {[%clk 0:02:42]} 5...
Bxd3 {[%clk 0:02:52]} 6. Qxd3 {[%clk 0:02:37.9]} 6... Nc6 {[%clk 0:02:50.5]} 7.
c3 {[%clk 0:02:38.7]} 7... Qd7 {[%clk 0:02:46.4]} 8. Nf3 {[%clk 0:02:39.3]} 8...
e6 {[%clk 0:02:47.5]} 9. O-O {[%clk 0:02:38.9]} 9... Nge7 {[%clk 0:02:48.5]} 10.
Nbd2 {[%clk 0:02:38.9]} 10... Ng6 {[%clk 0:02:49.3]} 11. Bd4 {[%clk 0:02:38.2]}
11... Be7 {[%clk 0:02:49.4]} 12. a4 {[%clk 0:02:01.7]} 12... O-O {[%clk
0:02:45.7]} 13. Rfe1 {[%clk 0:01:57.2]} 13... b6 {[%clk 0:02:38.4]} 14. b4
{[%clk 0:01:55]} 14... Nxd4 {[%clk 0:02:35.7]} 15. Qxd4 {[%clk 0:01:46.7]} 15...
c5 {[%clk 0:02:36.1]} 16. Qg4 {[%clk 0:01:42.6]} 16... Rac8 {[%clk 0:02:31.2]}
17. b5 {[%clk 0:01:28]} 17... Rce8 {[%clk 0:02:22.7]} 18. c4 {[%clk 0:01:26.7]}
18... d4 {[%clk 0:02:22.9]} 19. Ne4 {[%clk 0:01:19.9]} 19... Qc7 {[%clk
0:02:18.1]} 20. Qg3 {[%clk 0:01:17.8]} 20... Kh8 {[%clk 0:02:08.8]} 21. h4
{[%clk 0:01:17.3]} 21... Rg8 {[%clk 0:01:53.8]} 22. h5 {[%clk 0:01:14.1]} 22...
Nf8 {[%clk 0:01:55]} 23. Qf4 {[%clk 0:01:14.9]} 23... Bd8 {[%clk 0:01:54.5]} 24.
Nd6 {[%clk 0:01:13.9]} 24... Re7 {[%clk 0:01:54.8]} 25. Ng5 {[%clk 0:01:13.9]}
25... f5 {[%clk 0:01:54]} 26. exf6 {[%clk 0:01:13.2]} 26... gxf6 {[%clk
0:01:55.2]} 27. Qxf6+ {[%clk 0:01:12.2]} 27... Rgg7 {[%clk 0:01:56.6]} 28. Qxf8+
{[%clk 0:01:05.2]} 28... Rg8 {[%clk 0:01:57.3]} 29. Ngf7+ {[%clk 0:01:05.8]}
29... Rxf7 {[%clk 0:01:58.1]} 30. Nxf7+ {[%clk 0:01:06.9]} 1-0

[Event "*** Titled Tuesday 3|2 Blitz"]
[Site "Chess.com"]
[Date "2016.06.07"]
[Round "4"]
[White "Ksenia_Legenko"]
[Black "annakantane"]
[Result "0-1"]
[WhiteElo "2010"]
[BlackElo "2158"]
[TimeControl "180+2"]
[EndTime "11:46:43 PDT"]
[Termination "annakantane won by resignation"]

1. d4 {[%clk 0:03:01.9]} 1... Nf6 {[%clk 0:02:59.5]} 2. c4 {[%clk 0:02:59.7]}
2... c5 {[%clk 0:03:00.6]} 3. e3 {[%clk 0:03:00.2]} 3... cxd4 {[%clk 0:03:00.5]}
4. exd4 {[%clk 0:03:01]} 4... g6 {[%clk 0:03:02.1]} 5. Nc3 {[%clk 0:03:02.2]}
5... Bg7 {[%clk 0:03:03.8]} 6. Nf3 {[%clk 0:03:00.1]} 6... O-O {[%clk
0:03:05.4]} 7. Be2 {[%clk 0:03:00.8]} 7... d5 {[%clk 0:03:06.9]} 8. O-O {[%clk
0:02:57.3]} 8... Nc6 {[%clk 0:03:08.3]} 9. c5 {[%clk 0:02:57.6]} 9... Bg4 {[%clk
0:03:04.5]} 10. Be3 {[%clk 0:02:57.9]} 10... Ne4 {[%clk 0:02:59.9]} 11. h3
{[%clk 0:02:56.7]} 11... Bxf3 {[%clk 0:02:59.2]} 12. Bxf3 {[%clk 0:02:57.5]}
12... f5 {[%clk 0:03:00.7]} 13. Qb3 {[%clk 0:02:44.7]} 13... e6 {[%clk
0:02:54.3]} 14. Rad1 {[%clk 0:02:40.4]} 14... f4 {[%clk 0:02:44.3]} 15. Bxe4
{[%clk 0:02:30.9]} 15... fxe3 {[%clk 0:02:41.3]} 16. Bf3 {[%clk 0:02:18.7]}
16... Nxd4 {[%clk 0:02:37.8]} 17. Qxb7 {[%clk 0:02:08.3]} 17... Nxf3+ {[%clk
0:02:34.9]} 18. gxf3 {[%clk 0:02:09.3]} 18... Bxc3 {[%clk 0:02:36.4]} 19. bxc3
{[%clk 0:02:07.2]} 19... e2 {[%clk 0:02:37.3]} 20. Rfe1 {[%clk 0:01:56.4]} 20...
exd1=R {[%clk 0:02:33.3]} 21. Rxd1 {[%clk 0:01:57.4]} 21... Rc8 {[%clk
0:02:30.5]} 22. Qxa7 {[%clk 0:01:58]} 22... Qc7 {[%clk 0:02:31.5]} 23. Qa6
{[%clk 0:01:57]} 23... Qc6 {[%clk 0:02:32.4]} 24. Qe2 {[%clk 0:01:54.4]} 24...
Rf6 {[%clk 0:02:32.9]} 25. Qe5 {[%clk 0:01:54]} 25... Rcf8 {[%clk 0:02:30.7]}
26. Rb1 {[%clk 0:01:39.2]} 26... Qxc5 {[%clk 0:02:29.6]} 27. f4 {[%clk
0:01:34.9]} 27... Qc6 {[%clk 0:02:11.6]} 28. Rb4 {[%clk 0:01:29]} 28... Rf5
{[%clk 0:02:08.8]} 29. Qe3 {[%clk 0:01:26.2]} 29... Qd6 {[%clk 0:02:09.9]} 30.
Rb6 {[%clk 0:01:21.4]} 30... Qxf4 {[%clk 0:02:07.6]} 31. Qxe6+ {[%clk
0:01:22.2]} 31... Kh8 {[%clk 0:02:08.2]} 32. Qe2 {[%clk 0:00:49.1]} 32... Qxf2+
{[%clk 0:02:08.3]} 33. Qxf2 {[%clk 0:00:48.5]} 33... Rxf2 {[%clk 0:02:09.9]} 34.
a4 {[%clk 0:00:49.1]} 34... Ra2 {[%clk 0:02:08.3]} 0-1

[Event "*** Titled Tuesday 3|2 Blitz"]
[Site "Chess.com"]
[Date "2016.06.07"]
[Round "4"]
[White "VMikhalevski"]
[Black "lukas_111111"]
[Result "1-0"]
[WhiteElo "2426"]
[BlackElo "2207"]
[TimeControl "180+2"]
[EndTime "11:46:49 PDT"]
[Termination "VMikhalevski won by resignation"]

1. Nf3 {[%clk 0:03:01.9]} 1... Nf6 {[%clk 0:03:00.1]} 2. g3 {[%clk 0:03:01.4]}
2... g6 {[%clk 0:03:00.9]} 3. b3 {[%clk 0:03:02.3]} 3... Bg7 {[%clk 0:03:01.7]}
4. Bb2 {[%clk 0:03:03.2]} 4... O-O {[%clk 0:03:03.3]} 5. Bg2 {[%clk 0:03:03.5]}
5... d6 {[%clk 0:03:04.3]} 6. d4 {[%clk 0:03:00.6]} 6... e5 {[%clk 0:02:55.4]}
7. dxe5 {[%clk 0:03:00.2]} 7... Ng4 {[%clk 0:02:50.8]} 8. O-O {[%clk 0:02:58.2]}
8... Nc6 {[%clk 0:02:51.3]} 9. c4 {[%clk 0:02:58.1]} 9... Ngxe5 {[%clk
0:02:43.9]} 10. Nc3 {[%clk 0:02:58.1]} 10... Nxf3+ {[%clk 0:02:41.4]} 11. Bxf3
{[%clk 0:02:55.2]} 11... Bf5 {[%clk 0:02:36.8]} 12. Bg2 {[%clk 0:02:54.2]} 12...
Qd7 {[%clk 0:02:32.3]} 13. Qd2 {[%clk 0:02:54.6]} 13... Ne5 {[%clk 0:02:05.7]}
14. Nd5 {[%clk 0:02:53.2]} 14... c6 {[%clk 0:01:58.3]} 15. Ne3 {[%clk
0:02:52.6]} 15... Be6 {[%clk 0:01:33.5]} 16. f4 {[%clk 0:02:39.4]} 16... Ng4
{[%clk 0:01:33.6]} 17. Bxg7 {[%clk 0:02:36.8]} 17... Kxg7 {[%clk 0:01:34.6]} 18.
Qd4+ {[%clk 0:02:30.9]} 18... f6 {[%clk 0:01:22.9]} 19. Nd1 {[%clk 0:02:25.2]}
19... c5 {[%clk 0:01:06.6]} 20. Qd2 {[%clk 0:02:23]} 20... Rad8 {[%clk
0:00:57.7]} 21. Nc3 {[%clk 0:02:21.2]} 21... Rfe8 {[%clk 0:00:56.9]} 22. h3
{[%clk 0:02:16.5]} 22... Nh6 {[%clk 0:00:57.5]} 23. g4 {[%clk 0:02:17.1]} 23...
Nf7 {[%clk 0:00:53.8]} 24. Rad1 {[%clk 0:02:16.8]} 24... f5 {[%clk 0:00:51.9]}
25. g5 {[%clk 0:02:15.8]} 25... h6 {[%clk 0:00:52.8]} 26. h4 {[%clk 0:02:17]}
26... hxg5 {[%clk 0:00:53.8]} 27. hxg5 {[%clk 0:02:18.4]} 27... Rh8 {[%clk
0:00:54.2]} 28. Nd5 {[%clk 0:02:16.1]} 28... Bxd5 {[%clk 0:00:48.8]} 29. Qc3+
{[%clk 0:02:16.9]} 29... Kg8 {[%clk 0:00:46.1]} 30. Bxd5 {[%clk 0:02:17.6]}
30... Rh4 {[%clk 0:00:44.2]} 31. Qf6 {[%clk 0:02:13.1]} 31... Rg4+ {[%clk
0:00:44.4]} 32. Kh2 {[%clk 0:02:12]} 32... Rh4+ {[%clk 0:00:44.9]} 33. Kg3
{[%clk 0:02:11.3]} 33... Rg4+ {[%clk 0:00:43.6]} 34. Kf3 {[%clk 0:02:08.9]}
34... Kf8 {[%clk 0:00:29.3]} 35. Rh1 {[%clk 0:02:04.6]} 1-0

[Event "*** Titled Tuesday 3|2 Blitz"]
[Site "Chess.com"]
[Date "2016.06.07"]
[Round "4"]
[White "OldweakGM"]
[Black "E-Shaposhnikov"]
[Result "0-1"]
[WhiteElo "2604"]
[BlackElo "2575"]
[TimeControl "180+2"]
[EndTime "11:47:01 PDT"]
[Termination "E-Shaposhnikov won by resignation"]

1. Nf3 {[%clk 0:03:00.7]} 1... c5 {[%clk 0:02:59.4]} 2. c4 {[%clk 0:03:01.8]}
2... Nc6 {[%clk 0:03:00.4]} 3. Nc3 {[%clk 0:03:03.2]} 3... g6 {[%clk 0:03:00.9]}
4. e3 {[%clk 0:03:04.4]} 4... Nf6 {[%clk 0:03:01.5]} 5. d4 {[%clk 0:03:05.5]}
5... cxd4 {[%clk 0:03:02.4]} 6. exd4 {[%clk 0:03:06.9]} 6... d5 {[%clk
0:03:02.8]} 7. Bg5 {[%clk 0:03:06.7]} 7... Be6 {[%clk 0:03:01.2]} 8. Bxf6 {[%clk
0:02:45.1]} 8... exf6 {[%clk 0:03:01.8]} 9. Be2 {[%clk 0:02:45.9]} 9... Bg7
{[%clk 0:03:00.2]} 10. O-O {[%clk 0:01:58.7]} 10... O-O {[%clk 0:03:01]} 11. a3
{[%clk 0:01:57.3]} 11... f5 {[%clk 0:02:58.8]} 12. c5 {[%clk 0:01:58.2]} 12...
g5 {[%clk 0:02:56]} 13. Bb5 {[%clk 0:01:55.9]} 13... g4 {[%clk 0:02:56.7]} 14.
Bxc6 {[%clk 0:01:56.9]} 14... bxc6 {[%clk 0:02:48.8]} 15. Ne5 {[%clk 0:01:56.7]}
15... Bxe5 {[%clk 0:02:37.3]} 16. dxe5 {[%clk 0:01:57]} 16... d4 {[%clk
0:02:37.7]} 17. Ne2 {[%clk 0:01:53.2]} 17... d3 {[%clk 0:02:35]} 18. Nf4 {[%clk
0:01:38]} 18... d2 {[%clk 0:02:28.3]} 19. Nxe6 {[%clk 0:01:26.1]} 19... fxe6
{[%clk 0:02:30.2]} 20. Qb3 {[%clk 0:01:27.6]} 20... Qd7 {[%clk 0:02:26.9]} 21.
Rad1 {[%clk 0:01:26.8]} 21... Rad8 {[%clk 0:02:19.6]} 22. f4 {[%clk 0:01:25.9]}
22... Qd4+ {[%clk 0:02:12.9]} 23. Rf2 {[%clk 0:01:25.1]} 23... Rd5 {[%clk
0:02:13.7]} 24. Kf1 {[%clk 0:01:18.5]} 24... Qe4 {[%clk 0:02:04.8]} 25. Rdxd2
{[%clk 0:00:32.5]} 25... Qb1+ {[%clk 0:02:05]} 26. Ke2 {[%clk 0:00:33.3]} 26...
Rxd2+ {[%clk 0:02:05]} 27. Kxd2 {[%clk 0:00:34.7]} 27... Rd8+ {[%clk 0:02:01.7]}
28. Ke2 {[%clk 0:00:35.1]} 28... Rd5 {[%clk 0:01:52]} 29. Rf1 {[%clk 0:00:13.6]}
29... Qe4+ {[%clk 0:01:49.9]} 30. Kf2 {[%clk 0:00:15]} 30... Rd2+ {[%clk
0:01:50.9]} 31. Kg3 {[%clk 0:00:16.6]} 31... Rd3+ {[%clk 0:01:46.7]} 0-1

[Event "*** Titled Tuesday 3|2 Blitz"]
[Site "Chess.com"]
[Date "2016.06.07"]
[Round "4"]
[White "Boryboy"]
[Black "jcibarra"]
[Result "1/2-1/2"]
[WhiteElo "2545"]
[BlackElo "2658"]
[TimeControl "180+2"]
[EndTime "11:47:07 PDT"]
[Termination "Game drawn by agreement"]

1. d4 {[%clk 0:03:01.9]} 1... Nf6 {[%clk 0:03:00.1]} 2. Nf3 {[%clk 0:03:02.9]}
2... g6 {[%clk 0:03:00.5]} 3. g3 {[%clk 0:03:04.1]} 3... Bg7 {[%clk 0:03:01.1]}
4. Bg2 {[%clk 0:03:05.5]} 4... O-O {[%clk 0:03:02.6]} 5. O-O {[%clk 0:03:06.6]}
5... d6 {[%clk 0:03:04.3]} 6. a4 {[%clk 0:03:06.8]} 6... Na6 {[%clk 0:03:01.6]}
7. Nc3 {[%clk 0:03:02.6]} 7... c5 {[%clk 0:03:01.5]} 8. h3 {[%clk 0:02:58.5]}
8... cxd4 {[%clk 0:02:57.6]} 9. Nxd4 {[%clk 0:02:59.1]} 9... Nc5 {[%clk
0:02:49.2]} 10. Ra3 {[%clk 0:02:55.9]} 10... Rb8 {[%clk 0:02:48]} 11. Be3 {[%clk
0:02:55.6]} 11... a6 {[%clk 0:02:48.9]} 12. Qd2 {[%clk 0:02:42.1]} 12... Bd7
{[%clk 0:02:37.8]} 13. b4 {[%clk 0:02:34.6]} 13... Ne6 {[%clk 0:02:37]} 14. Nxe6
{[%clk 0:02:33.2]} 14... Bxe6 {[%clk 0:02:34.8]} 15. b5 {[%clk 0:02:33.5]} 15...
Qc7 {[%clk 0:02:30.2]} 16. a5 {[%clk 0:02:26.9]} 16... Rfc8 {[%clk 0:02:29.4]}
17. Ba7 {[%clk 0:02:26]} 17... Ra8 {[%clk 0:02:30.3]} 18. bxa6 {[%clk
0:02:15.2]} 18... bxa6 {[%clk 0:02:08.7]} 19. Bb6 {[%clk 0:02:14.3]} 19... Qc4
{[%clk 0:02:05.1]} 20. Bxa8 {[%clk 0:02:04.8]} 20... Rxa8 {[%clk 0:02:07]} 21.
Kh2 {[%clk 0:01:56.7]} 21... Rc8 {[%clk 0:02:06.7]} 22. Qd3 {[%clk 0:01:44.5]}
22... Bf5 {[%clk 0:02:02.5]} 23. Qxc4 {[%clk 0:01:42.6]} 23... Rxc4 {[%clk
0:02:04.4]} 24. Rc1 {[%clk 0:01:38.5]} 24... Nd7 {[%clk 0:02:03.2]} 25. Nd5
{[%clk 0:01:36.6]} 25... Bb2 {[%clk 0:01:53.2]} 26. Nxe7+ {[%clk 0:01:23.5]}
26... Kf8 {[%clk 0:01:53.7]} 27. Nxf5 {[%clk 0:01:24.9]} 27... Bxc1 {[%clk
0:01:39.4]} 28. Nxd6 {[%clk 0:00:45.4]} 28... Rxc2 {[%clk 0:01:30.6]} 29. Ra4
{[%clk 0:00:37.1]} 1/2-1/2